bitfinex/quotes_BTCUSD_20221001
["timestamp","ask_amount","ask_price","bid_price","bid_amount"]
[1664664680993,0.40022155,19335.0,19334.0,0.05]
[1664664681222,0.129292,19336.0,19334.0,0.05]
[1664664681448,0.64102344,19336.0,19334.0,0.05]
[1664664681650,0.64102344,19336.0,19332.0,0.57942644]
[1664664681889,0.64102344,19336.0,19333.0,0.32079644]
[1664664682125,0.70602344,19336.0,19332.0,0.57942644]
[1664664682358,0.70602344,19336.0,19333.0,0.32079644]
[1664664682581,0.70602344,19336.0,19332.0,0.57942644]
[1664664682808,0.70602344,19336.0,19333.0,0.32079644]
[1664664683026,0.70602344,19336.0,19332.0,0.57942644]
[1664664683231,0.64102344,19336.0,19333.0,0.32079644]
[1664664683470,0.64102344,19336.0,19332.0,0.57942644]
[1664664683687,0.64102344,19336.0,19333.0,0.32079644]
[1664664683908,0.64102344,19336.0,19332.0,0.57942644]
[1664664684119,0.68602344,19336.0,19333.0,0.32079644]
[1664664684579,0.68602344,19336.0,19332.0,0.57942644]
[1664664685036,0.68602344,19336.0,19333.0,0.32079644]
[1664664685037,0.174292,19336.0,19333.0,0.32079644]
[1664664685263,0.174292,19336.0,19334.0,0.486136]
[1664664685479,0.129292,19336.0,19334.0,0.129223]
[1664664686098,0.171292,19336.0,19334.0,0.129223]
[1664664687356,0.129292,19336.0,19334.0,0.129223]
[1664664687903,0.1680788,19336.0,19334.0,0.129223]
[1664664688113,0.2100788,19336.0,19334.0,0.129223]
[1664664689510,0.1680788,19336.0,19334.0,0.129223]
[1664664690243,0.2330788,19336.0,19334.0,0.129223]
[1664664691362,0.1680788,19336.0,19334.0,0.129223]
[1664664692278,0.2330788,19336.0,19334.0,0.129223]
[1664664692727,0.065,19336.0,19334.0,0.129223]
[1664664692929,0.010504,19335.0,19334.0,0.129223]
[1664664693244,0.065,19336.0,19334.0,0.129223]
[1664664693360,0.387865,19337.0,19334.0,0.129223]
[1664664693688,0.5,19335.0,19334.0,0.129223]
[1664664694992,0.510504,19335.0,19332.0,0.129229]
[1664664695220,0.6293,19335.0,19332.0,0.129229]
[1664664695666,0.6293,19335.0,19332.0,0.45002544]
[1664664695883,0.6293,19335.0,19333.0,0.356913]
[1664664696146,0.6893,19335.0,19332.0,0.129229]
[1664664696359,0.6893,19335.0,19332.0,0.45002544]
[1664664696576,0.6893,19335.0,19332.0,0.129229]
[1664664696798,0.6893,19335.0,19332.0,0.45002544]
[1664664697022,0.6893,19335.0,19332.0,0.57942944]
[1664664697230,0.6293,19335.0,19332.0,0.57942944]
[1664664697491,0.6293,19335.0,19332.0,0.258633]
[1664664698172,0.7003,19335.0,19332.0,0.258633]
[1664664698612,0.7003,19335.0,19332.0,0.57942944]
[1664664699315,0.6293,19335.0,19332.0,0.57942944]
[1664664700040,0.7003,19335.0,19332.0,0.57942944]
[1664664700582,0.7003,19335.0,19332.0,0.258633]
[1664664700792,0.7003,19335.0,19332.0,0.57942944]
[1664664701020,0.7003,19335.0,19332.0,0.258633]
[1664664701284,0.7003,19335.0,19332.0,0.57942944]
[1664664701506,0.6293,19335.0,19332.0,0.258633]
[1664664701733,0.6293,19335.0,19332.0,0.57942944]
[1664664701960,0.5,19335.0,19332.0,0.45002544]
[1664664702082,0.571,19335.0,19332.0,0.57942944]
[1664664702314,0.7003,19335.0,19332.0,0.258633]
[1664664702528,0.80277596,19335.0,19332.0,0.57942944]
[1664664703526,0.73177596,19335.0,19332.0,0.57942944]
[1664664703892,0.73177596,19335.0,19332.0,0.258633]
[1664664704022,0.80277596,19335.0,19332.0,0.258633]
[1664664704245,0.80277596,19335.0,19332.0,0.57942944]
[1664664704691,0.80277596,19335.0,19332.0,0.56942944]
[1664664705173,0.80277596,19335.0,19332.0,0.248633]
[1664664705395,0.73177596,19335.0,19332.0,0.248633]
[1664664705817,0.73177596,19335.0,19332.0,0.56942944]
[1664664706030,0.6893,19335.0,19332.0,0.56942944]
[1664664707181,0.56,19335.0,19332.0,0.69874744]
[1664664707415,0.5,19335.0,19333.0,0.80710644]
[1664664707657,0.5,19335.0,19334.0,0.356913]
[1664664707867,0.5,19335.0,19333.0,0.129397]
[1664664708258,0.562,19335.0,19333.0,0.129397]
[1664664709502,0.5,19335.0,19333.0,0.129397]
[1664664710178,0.562,19335.0,19333.0,0.129397]
[1664664711178,0.010504,19334.0,19333.0,0.129397]
[1664664711390,0.5,19335.0,19333.0,0.129397]
[1664664712217,0.562,19335.0,19333.0,0.129397]
[1664664713056,0.562,19335.0,19334.0,0.67770944]
[1664664713280,0.562,19335.0,19334.0,0.356913]
[1664664713508,0.5,19335.0,19334.0,0.356913]
[1664664713720,0.5,19335.0,19333.0,0.45019344]
[1664664714155,0.565,19335.0,19333.0,0.45019344]
[1664664714887,0.565,19335.0,19333.0,0.129397]
[1664664715514,0.5,19335.0,19333.0,0.129397]
[1664664716106,0.576,19335.0,19333.0,0.129397]
[1664664716558,0.705299,19335.0,19333.0,0.129397]
[1664664717721,0.629299,19335.0,19333.0,0.129397]
[1664664718393,0.83946416,19335.0,19333.0,0.129397]
[1664664719511,0.76346416,19335.0,19333.0,0.129397]
[1664664719740,0.887897,19335.0,19332.0,0.248631]
[1664664720187,0.963897,19335.0,19332.0,0.248631]
[1664664720436,0.33130044,19334.0,19332.0,0.248631]
[1664664720663,0.010504,19334.0,19332.0,0.248631]
[1664664720879,0.129305,19334.0,19332.0,0.248631]
[1664664722127,0.200305,19334.0,19332.0,0.248631]
[1664664723646,0.129305,19334.0,19332.0,0.248631]
[1664664723796,0.387916,19334.0,19332.0,0.248631]
[1664664724033,0.387916,19334.0,19332.0,0.119229]
[1664664724288,0.010504,19333.0,19331.0,0.129237]
[1664664724480,0.129313,19333.0,19331.0,0.129237]
[1664664724693,0.129313,19333.0,19332.0,0.05]
[1664664724907,0.129313,19333.0,19332.0,0.356913]
[1664664725466,0.129313,19333.0,19331.0,0.258648]
[1664664725671,0.129313,19333.0,19332.0,0.356913]
[1664664725898,0.129313,19333.0,19331.0,0.258648]
[1664664726263,0.189313,19333.0,19331.0,0.258648]
[1664664727192,0.189313,19333.0,19332.0,0.356913]
[1664664727337,0.184313,19333.0,19332.0,0.356913]
[1664664727561,0.124313,19333.0,19331.0,0.258648]
[1664664728229,0.183313,19333.0,19331.0,0.258648]
[1664664729435,0.183313,19333.0,19332.0,0.356913]
[1664664729642,0.124313,19333.0,19331.0,0.258648]
[1664664730357,0.200313,19333.0,19332.0,0.406913]
[1664664730610,0.200313,19333.0,19331.0,0.258648]
[1664664730821,0.200313,19333.0,19332.0,0.356913]
[1664664731031,0.200313,19333.0,19331.0,0.258648]
[1664664731511,0.124313,19333.0,19332.0,0.356913]
[1664664731789,0.124313,19333.0,19331.0,0.258648]
[1664664732229,0.201313,19333.0,19332.0,0.356913]
[1664664732466,0.201313,19333.0,19331.0,0.258648]
[1664664733576,0.124313,19333.0,19331.0,0.258648]
[1664664734262,0.458938,19333.0,19331.0,0.258648]
[1664664734974,0.458938,19333.0,19331.0,0.129237]
[1664664735613,0.70373444,19333.0,19331.0,0.129237]
[1664664736120,0.382938,19333.0,19331.0,0.129237]
[1664664736346,0.76273444,19333.0,19331.0,0.129237]
[1664664737021,0.441938,19333.0,19332.0,0.406913]
[1664664737240,0.76273444,19333.0,19332.0,0.356913]
[1664664737459,0.441938,19333.0,19331.0,0.129237]
[1664664737684,0.382938,19333.0,19331.0,0.129237]
[1664664738407,0.959188,19333.0,19330.0,0.258658]
[1664664738988,0.959188,19333.0,19331.0,0.356913]
[1664664739160,0.959188,19333.0,19330.0,0.258658]
[1664664739370,0.959188,19333.0,19331.0,0.356913]
[1664664739580,1.22098444,19333.0,19330.0,0.129242]
[1664664739795,0.900188,19333.0,19331.0,0.356913]
[1664664740012,1.28514021,19333.0,19329.0,0.877373]
[1664664740285,0.968188,19333.0,19330.0,0.356913]
[1664664740677,0.968188,19333.0,19329.0,0.877373]
[1664664740889,0.968188,19333.0,19330.0,0.356913]
[1664664741123,0.968188,19333.0,19329.0,0.877373]
[1664664741124,1.28898444,19333.0,19329.0,0.747949]
[1664664741515,1.28898444,19333.0,19330.0,0.356913]
[1664664741516,0.900188,19333.0,19330.0,0.356913]
[1664664741765,1.22098444,19333.0,19329.0,0.747949]
[1664664742015,0.900188,19333.0,19330.0,0.356913]
[1664664742263,0.900188,19333.0,19331.0,0.356913]
[1664664742496,1.29998444,19333.0,19330.0,0.356913]
[1664664742714,0.979188,19333.0,19330.0,0.356913]
[1664664742939,0.979188,19333.0,19331.0,0.356913]
[1664664743166,0.979188,19333.0,19329.0,0.95278833]
[1664664743387,0.979188,19333.0,19330.0,0.356913]
[1664664743618,0.979188,19333.0,19331.0,0.356913]
[1664664743838,0.979188,19333.0,19332.0,0.356913]
[1664664744061,0.979188,19333.0,19329.0,0.747949]
[1664664744263,0.959188,19333.0,19330.0,0.356913]
[1664664744413,0.959188,19333.0,19329.0,0.747949]
[1664664744643,0.959188,19333.0,19330.0,0.356913]
[1664664744851,1.27998444,19333.0,19329.0,0.747949]
[1664664745069,1.27998444,19333.0,19330.0,0.356913]
[1664664745317,1.27998444,19333.0,19329.0,0.747949]
[1664664745526,0.959188,19333.0,19330.0,0.356913]
[1664664745793,1.22098444,19333.0,19329.0,0.747949]
[1664664745986,0.900188,19333.0,19330.0,0.356913]
[1664664746208,1.22098444,19333.0,19329.0,0.747949]
[1664664746416,1.29498444,19333.0,19330.0,0.356913]
[1664664746627,1.29498444,19333.0,19329.0,0.95278833]
[1664664746786,0.974188,19333.0,19330.0,0.356913]
[1664664747036,0.974188,19333.0,19329.0,0.95278833]
[1664664747215,0.974188,19333.0,19331.0,0.356913]
[1664664747454,0.900188,19333.0,19331.0,0.356913]
[1664664747895,0.382938,19333.0,19330.0,0.258661]
[1664664748118,0.382938,19333.0,19331.0,0.356913]
[1664664748333,0.054,19333.0,19332.0,0.406913]
[1664664749486,0.064504,19333.0,19331.0,0.38797]
[1664664749701,0.40459283,19334.0,19332.0,0.05]
[1664664749881,0.40459283,19334.0,19332.0,0.536317]
[1664664750098,0.40459283,19334.0,19332.0,0.179404]
[1664664750306,0.46459283,19334.0,19332.0,0.179404]
[1664664751212,0.46459283,19334.0,19333.0,0.356913]
[1664664751340,0.46459283,19334.0,19332.0,0.179404]
[1664664751559,0.40459283,19334.0,19332.0,0.179404]
[1664664751809,0.40459283,19334.0,19332.0,0.308723]
[1664664752068,0.40459283,19334.0,19332.0,0.179404]
[1664664752400,0.47559283,19334.0,19332.0,0.179404]
[1664664752626,0.47559283,19334.0,19333.0,0.356913]
[1664664752861,0.47559283,19334.0,19332.0,0.308722]
[1664664753099,0.47559283,19334.0,19333.0,0.356913]
[1664664753317,0.48609683,19334.0,19332.0,0.258722]
[1664664753572,0.40459283,19334.0,19332.0,0.258722]
[1664664753778,0.010504,19333.0,19332.0,0.129404]
[1664664753992,0.40459283,19334.0,19332.0,0.129404]
[1664664754208,0.40459283,19334.0,19333.0,0.356913]
[1664664754434,0.40459283,19334.0,19332.0,0.258721]
[1664664754930,0.40459283,19334.0,19333.0,0.536225]
[1664664755181,0.40459283,19334.0,19333.0,0.05]
[1664664755388,0.40459283,19334.0,19332.0,0.388034]
[1664664755513,0.40459283,19334.0,19332.0,0.517349]
[1664664755903,0.5,19335.0,19333.0,0.05]
[1664664756087,0.5,19335.0,19333.0,0.179395]
[1664664756297,0.071,19334.0,19333.0,0.179395]
[1664664757077,0.071,19334.0,19333.0,0.129395]
[1664664757972,0.5,19335.0,19333.0,0.129395]
[1664664758198,0.82079644,19335.0,19333.0,0.129395]
[1664664758439,0.076,19334.0,19333.0,0.129395]
[1664664759483,0.79945306,19336.0,19333.0,0.129395]
[1664664759681,1.1202495,19336.0,19334.0,0.129222]
[1664664760122,1.33516619,19336.0,19334.0,0.129222]
[1664664760337,0.010504,19335.0,19334.0,0.129222]
[1664664760560,1.38016619,19336.0,19334.0,0.129222]
[1664664761492,0.010504,19335.0,19334.0,0.129222]
[1664664761689,1.01436975,19336.0,19334.0,0.129222]
[1664664761997,1.33516619,19336.0,19334.0,0.129222]
[1664664762497,1.38016619,19336.0,19334.0,0.129222]
[1664664762730,0.010504,19335.0,19334.0,0.129222]
[1664664762942,1.05936975,19336.0,19334.0,0.129222]
[1664664763170,1.38016619,19336.0,19334.0,0.129222]
[1664664763655,1.33516619,19336.0,19334.0,0.129222]
[1664664763855,0.010504,19335.0,19334.0,0.129222]
[1664664764028,1.33516619,19336.0,19334.0,0.129222]
[1664664764483,0.065,19335.0,19334.0,0.129222]
[1664664765681,1.31662506,19336.0,19334.0,0.129222]
[1664664765906,0.32079644,19335.0,19334.0,0.129222]
[1664664766124,1.56267668,19336.0,19334.0,0.129222]
[1664664766366,1.92847312,19336.0,19334.0,0.129222]
[1664664766839,0.010504,19335.0,19334.0,0.129222]
[1664664767261,1.60768168,19336.0,19334.0,0.129222]
[1664664767486,1.92847812,19336.0,19334.0,0.129222]
[1664664767709,1.88347812,19336.0,19334.0,0.129222]
[1664664768396,0.16374265,19335.0,19334.0,0.129222]
[1664664768641,0.075,19332.0,19330.0,0.56151468]
[1664664768894,0.32079644,19333.0,19330.0,0.43227568]
[1664664769136,0.70874444,19333.0,19330.0,0.56169268]
[1664664769577,0.387948,19333.0,19331.0,0.356913]
[1664664769807,0.70874444,19333.0,19330.0,0.69093268]
[1664664770079,0.387948,19333.0,19331.0,0.356922]
[1664664770313,0.70874444,19333.0,19330.0,0.69093268]
[1664664770531,0.460948,19333.0,19331.0,0.356922]
[1664664770752,0.78174444,19333.0,19330.0,0.258657]
[1664664770973,0.460948,19333.0,19330.0,0.258657]
[1664664771442,0.460948,19333.0,19331.0,0.356922]
[1664664771668,0.70874444,19333.0,19330.0,0.258657]
[1664664771890,0.387948,19333.0,19330.0,0.258657]
[1664664772086,0.387948,19333.0,19331.0,0.356922]
[1664664772303,0.387948,19333.0,19330.0,0.258657]
[1664664772551,0.443948,19333.0,19331.0,0.356922]
[1664664772782,0.443948,19333.0,19330.0,0.258657]
[1664664773013,0.443948,19333.0,19331.0,0.356922]
[1664664773450,0.443948,19333.0,19330.0,0.258657]
[1664664773954,0.387948,19333.0,19330.0,0.258657]
[1664664774627,0.443948,19333.0,19330.0,0.258657]
[1664664775063,0.443948,19333.0,19331.0,0.356922]
[1664664775300,0.443948,19333.0,19330.0,0.258657]
[1664664775530,0.443948,19333.0,19331.0,0.356922]
[1664664775653,0.387948,19333.0,19330.0,0.258657]
[1664664775863,0.387948,19333.0,19331.0,0.356922]
[1664664776163,0.387948,19333.0,19332.0,0.356922]
[1664664776475,0.387948,19333.0,19330.0,0.258657]
[1664664776698,0.440948,19333.0,19331.0,0.486162]
[1664664776898,0.440948,19333.0,19332.0,0.05]
[1664664777114,0.76174444,19333.0,19331.0,0.12924]
[1664664777346,0.440948,19333.0,19331.0,0.12924]
[1664664777835,0.387948,19333.0,19331.0,0.12924]
[1664664778399,0.465948,19333.0,19331.0,0.12924]
[1664664779866,0.377948,19333.0,19331.0,0.12924]
[1664664780595,0.455948,19333.0,19331.0,0.12924]
[1664664781793,0.377948,19333.0,19331.0,0.12924]
[1664664781994,0.015502,19332.0,19331.0,0.12924]
[1664664782194,0.129319,19332.0,19330.0,0.258657]
[1664664782639,0.129319,19332.0,19331.0,0.356922]
[1664664782852,0.129319,19332.0,19330.0,0.258657]
[1664664783102,0.129319,19332.0,19331.0,0.356922]
[1664664783318,0.129319,19332.0,19330.0,0.258657]
[1664664783540,0.129319,19332.0,19331.0,0.406922]
[1664664783738,0.129319,19332.0,19331.0,0.05]
[1664664783952,0.124319,19332.0,19331.0,0.406922]
[1664664784313,0.124319,19332.0,19331.0,0.05]
[1664664784552,0.202319,19332.0,19331.0,0.05]
[1664664784984,0.202319,19332.0,19331.0,0.406922]
[1664664785629,0.387946,19333.0,19331.0,0.406922]
[1664664785904,0.258632,19333.0,19331.0,0.05]
[1664664786080,0.129317,19333.0,19331.0,0.05]
[1664664786462,0.465949,19333.0,19331.0,0.05]
[1664664786932,0.465949,19333.0,19330.0,0.258657]
[1664664787156,0.465949,19333.0,19331.0,0.486162]
[1664664787389,0.465949,19333.0,19331.0,0.12924]
[1664664787600,0.387949,19333.0,19331.0,0.12924]
[1664664788370,0.015502,19332.0,19331.0,0.12924]
[1664664788589,0.465949,19333.0,19330.0,0.258657]
[1664664789799,0.387949,19333.0,19330.0,0.258657]
[1664664790245,0.015502,19332.0,19330.0,0.258657]
[1664664790469,0.12932,19332.0,19330.0,0.258657]
[1664664790692,0.12932,19332.0,19331.0,0.356922]
[1664664790950,0.12932,19332.0,19330.0,0.258657]
[1664664791175,0.12932,19332.0,19331.0,0.356922]
[1664664792113,0.12932,19332.0,19330.0,0.258657]
[1664664792336,0.12932,19332.0,19331.0,0.356922]
[1664664792558,0.20732,19332.0,19330.0,0.258657]
[1664664792799,0.20732,19332.0,19331.0,0.356922]
[1664664793047,0.20732,19332.0,19330.0,0.258657]
[1664664793255,0.20732,19332.0,19331.0,0.356922]
[1664664793491,0.20732,19332.0,19330.0,0.258657]
[1664664793710,0.12932,19332.0,19331.0,0.356922]
[1664664793934,0.12932,19332.0,19330.0,0.258657]
[1664664794138,0.12932,19332.0,19331.0,0.356922]
[1664664794694,0.20232,19332.0,19330.0,0.258657]
[1664664794921,0.20232,19332.0,19331.0,0.356922]
[1664664795144,0.20232,19332.0,19330.0,0.258657]
[1664664795402,0.20232,19332.0,19331.0,0.356922]
[1664664795673,0.20232,19332.0,19330.0,0.258657]
[1664664795910,0.12932,19332.0,19331.0,0.356922]
[1664664796117,0.12932,19332.0,19330.0,0.258657]
[1664664796315,0.12932,19332.0,19331.0,0.356922]
[1664664796553,0.20732,19332.0,19331.0,0.356922]
[1664664797672,0.222822,19332.0,19330.0,0.258657]
[1664664797885,0.12932,19332.0,19331.0,0.356922]
[1664664798310,0.12932,19332.0,19330.0,0.258657]
[1664664798451,0.20732,19332.0,19331.0,0.356922]
[1664664798701,0.20732,19332.0,19330.0,0.258657]
[1664664798907,0.20732,19332.0,19331.0,0.356922]
[1664664799152,0.20732,19332.0,19330.0,0.258657]
[1664664799754,0.12932,19332.0,19330.0,0.258657]
[1664664800558,0.20232,19332.0,19331.0,0.356922]
[1664664800989,0.20232,19332.0,19330.0,0.258657]
[1664664801446,0.20232,19332.0,19331.0,0.356922]
[1664664801704,0.12932,19332.0,19330.0,0.258657]
[1664664801941,0.12932,19332.0,19331.0,0.356922]
[1664664802158,0.12932,19332.0,19330.0,0.258657]
[1664664802803,0.12932,19332.0,19330.0,0.12924]
[1664664802804,0.465958,19332.0,19330.0,0.12924]
[1664664803602,0.075,19331.0,19330.0,0.12924]
[1664664803825,0.905235,19332.0,19330.0,0.356922]
[1664664804041,0.905235,19332.0,19331.0,0.356922]
[1664664804271,0.905235,19332.0,19330.0,0.129248]
[1664664804494,0.978235,19332.0,19330.0,0.129248]
[1664664805887,0.905235,19332.0,19330.0,0.129248]
[1664664806654,0.985235,19332.0,19330.0,0.129248]
[1664664807134,0.075,19331.0,19330.0,0.129248]
[1664664807350,0.08,19332.0,19330.0,0.356922]
[1664664807557,0.387981,19331.0,19329.0,0.129422]
[1664664807786,0.387981,19331.0,19330.0,0.356922]
[1664664808650,0.467981,19331.0,19330.0,0.356922]
[1664664809761,0.387981,19331.0,19329.0,0.258676]
[1664664810189,0.387981,19331.0,19330.0,0.356922]
[1664664810633,0.467981,19331.0,19330.0,0.356922]
[1664664811073,0.467981,19331.0,19329.0,0.258676]
[1664664811286,0.467981,19331.0,19330.0,0.356922]
[1664664811965,0.387981,19331.0,19330.0,0.356922]
[1664664812616,0.467981,19331.0,19330.0,0.356922]
[1664664813275,0.467981,19331.0,19329.0,0.258676]
[1664664813490,0.467981,19331.0,19330.0,0.356922]
[1664664813759,0.387981,19331.0,19330.0,0.346922]
[1664664813987,0.387981,19331.0,19330.0,0.341922]
[1664664814627,0.467981,19331.0,19330.0,0.341922]
[1664664814840,0.08,19331.0,19330.0,0.341922]
[1664664815711,0.129321,19332.0,19330.0,0.341922]
[1664664815923,0.70874544,19333.0,19330.0,0.258495]
[1664664816172,1.09115988,19333.0,19330.0,0.387907]
[1664664816317,0.51173144,19333.0,19330.0,0.387907]
[1664664816589,0.59173144,19333.0,19330.0,0.387907]
[1664664816893,0.97968044,19333.0,19330.0,0.517239]
[1664664817787,0.89968044,19333.0,19330.0,0.517239]
[1664664817919,0.89968044,19333.0,19330.0,0.387907]
[1664664818563,0.97968044,19333.0,19330.0,0.387907]
[1664664819820,0.89968044,19333.0,19330.0,0.387907]
[1664664820689,0.97968044,19333.0,19330.0,0.387907]
[1664664821620,1.46313485,19333.0,19330.0,0.387907]
[1664664821853,1.38313485,19333.0,19330.0,0.387907]
[1664664822076,1.90038485,19333.0,19330.0,0.387907]
[1664664822580,1.98038485,19333.0,19330.0,0.387907]
[1664664823013,1.65958841,19333.0,19330.0,0.387907]
[1664664823491,1.98038485,19333.0,19330.0,0.387907]
[1664664823984,1.90038485,19333.0,19330.0,0.387907]
[1664664824636,1.98038485,19333.0,19330.0,0.387907]
[1664664825285,0.075,19331.0,19330.0,0.129412]
[1664664825653,0.56973569,19332.0,19330.0,0.129412]
[1664664825864,0.56973569,19332.0,19331.0,0.35694]
[1664664825865,0.387963,19332.0,19331.0,0.35694]
[1664664826237,0.387963,19332.0,19330.0,0.258659]
[1664664826722,0.387963,19332.0,19331.0,0.35694]
[1664664826723,0.450963,19332.0,19331.0,0.35694]
[1664664826960,0.450963,19332.0,19330.0,0.258659]
[1664664827183,0.450963,19332.0,19331.0,0.35694]
[1664664827889,0.387963,19332.0,19330.0,0.258659]
[1664664828354,0.387963,19332.0,19331.0,0.35694]
[1664664828569,0.460963,19332.0,19330.0,0.258659]
[1664664829232,0.460963,19332.0,19331.0,0.35694]
[1664664829940,0.387963,19332.0,19331.0,0.35694]
[1664664830411,0.73925944,19332.0,19330.0,0.258659]
[1664664830641,0.450963,19332.0,19330.0,0.258659]
[1664664831092,0.450963,19332.0,19331.0,0.35694]
[1664664831294,0.450963,19332.0,19330.0,0.129247]
[1664664832002,0.387963,19332.0,19331.0,0.35694]
[1664664832227,0.387963,19332.0,19330.0,0.129247]
[1664664832470,0.387963,19332.0,19331.0,0.35694]
[1664664832694,0.450963,19332.0,19330.0,0.129247]
[1664664832911,0.450963,19332.0,19331.0,0.35694]
[1664664833133,0.450963,19332.0,19330.0,0.129247]
[1664664833333,0.450963,19332.0,19331.0,0.35694]
[1664664833582,0.450963,19332.0,19330.0,0.129247]
[1664664834087,0.387963,19332.0,19331.0,0.35694]
[1664664834304,0.387963,19332.0,19330.0,0.129247]
[1664664834743,0.450963,19332.0,19330.0,0.258664]
[1664664835222,0.450963,19332.0,19331.0,0.35694]
[1664664835431,0.450963,19332.0,19330.0,0.258664]
[1664664835804,0.387963,19332.0,19330.0,0.258664]
[1664664836569,0.441963,19332.0,19330.0,0.258664]
[1664664836797,0.76275944,19332.0,19330.0,0.258664]
[1664664836972,0.441963,19332.0,19330.0,0.258664]
[1664664837190,0.441963,19332.0,19331.0,0.35694]
[1664664837402,0.441963,19332.0,19330.0,0.258664]
[1664664837905,0.441963,19332.0,19331.0,0.35694]
[1664664838128,0.441963,19332.0,19330.0,0.258664]
[1664664838354,0.387963,19332.0,19330.0,0.258664]
[1664664838590,0.467963,19332.0,19331.0,0.35694]
[1664664838800,0.467963,19332.0,19330.0,0.258664]
[1664664839584,0.467963,19332.0,19331.0,0.35694]
[1664664839780,0.467963,19332.0,19330.0,0.258664]
[1664664839992,0.387963,19332.0,19330.0,0.258664]
[1664664840438,0.387963,19332.0,19331.0,0.35694]
[1664664840650,0.441963,19332.0,19330.0,0.258664]
[1664664840863,0.441963,19332.0,19331.0,0.35694]
[1664664841036,0.94035388,19332.0,19330.0,0.258664]
[1664664841246,0.441963,19332.0,19330.0,0.258664]
[1664664841893,0.441963,19332.0,19331.0,0.35694]
[1664664841894,0.129323,19332.0,19331.0,0.35694]
[1664664842109,0.129323,19332.0,19330.0,0.258664]
[1664664842463,0.129323,19332.0,19331.0,0.35694]
[1664664842733,0.209323,19332.0,19330.0,0.258664]
[1664664842968,0.209323,19332.0,19331.0,0.35694]
[1664664843187,0.55174251,19332.0,19330.0,0.258664]
[1664664843407,0.467961,19332.0,19330.0,0.258664]
[1664664843620,0.467961,19332.0,19331.0,0.35694]
[1664664843853,0.78875744,19332.0,19330.0,0.258664]
[1664664844068,0.467961,19332.0,19330.0,0.258664]
[1664664844311,0.32079644,19331.0,19330.0,0.258664]
[1664664844535,0.35129644,19331.0,19330.0,0.258664]
[1664664844768,0.467958,19332.0,19330.0,0.129417]
[1664664844992,0.78875444,19332.0,19330.0,0.129417]
[1664664845214,0.8452749,19332.0,19330.0,0.258664]
[1664664845478,0.075,19331.0,19330.0,0.258664]
[1664664845704,0.52447346,19332.0,19329.0,0.258676]
[1664664845932,0.3773059,19332.0,19330.0,0.35694]
[1664664846150,0.7652699,19332.0,19330.0,0.129247]
[1664664846375,0.7652699,19332.0,19329.0,0.258676]
[1664664846678,0.387964,19332.0,19330.0,0.486187]
[1664664846905,0.78876044,19332.0,19330.0,0.129247]
[1664664847123,0.467964,19332.0,19330.0,0.129247]
[1664664847558,0.075,19331.0,19330.0,0.129247]
[1664664847808,0.467964,19332.0,19329.0,0.258676]
[1664664848044,1.45573428,19332.0,19329.0,0.258676]
[1664664848278,1.37573428,19332.0,19329.0,0.258676]
[1664664848730,1.45573428,19332.0,19330.0,0.35694]
[1664664848955,0.32079644,19331.0,19330.0,0.129247]
[1664664849188,0.55049128,19332.0,19330.0,0.129247]
[1664664849416,1.45573428,19332.0,19330.0,0.129247]
[1664664849647,0.075,19331.0,19330.0,0.129247]
[1664664849879,0.075,19331.0,19330.0,0.35694]
[1664664850310,0.47049128,19332.0,19329.0,0.258676]
[1664664850564,0.387976,19331.0,19329.0,0.129254]
[1664664850786,0.467976,19331.0,19329.0,0.129254]
[1664664851014,0.0305,19330.0,19329.0,0.129254]
[1664664851244,0.467979,19331.0,19328.0,0.72666309]
[1664664851464,0.08,19331.0,19329.0,0.35694]
[1664664851689,0.467979,19331.0,19330.0,0.35694]
[1664664851914,0.387979,19331.0,19329.0,0.129254]
[1664664852800,0.467979,19331.0,19329.0,0.129254]
[1664664853080,0.467979,19331.0,19330.0,0.35694]
[1664664853758,0.467979,19331.0,19329.0,0.129254]
[1664664853908,0.387979,19331.0,19330.0,0.35694]
[1664664854142,0.387979,19331.0,19329.0,0.129254]
[1664664854933,0.62733895,19331.0,19329.0,0.129254]
[1664664855961,0.54733895,19331.0,19329.0,0.129254]
[1664664856830,0.62733895,19331.0,19329.0,0.129254]
[1664664857937,0.387979,19331.0,19329.0,0.129254]
[1664664858175,0.387979,19331.0,19330.0,0.35694]
[1664664858428,0.387979,19331.0,19329.0,0.129254]
[1664664858658,0.467979,19331.0,19329.0,0.129254]
[1664664859088,0.498479,19331.0,19329.0,0.129254]
[1664664859298,0.467979,19331.0,19329.0,0.129254]
[1664664859751,0.467979,19331.0,19330.0,0.35694]
[1664664859972,0.387979,19331.0,19329.0,0.129254]
[1664664860851,0.467979,19331.0,19329.0,0.129254]
[1664664862035,0.387979,19331.0,19329.0,0.129254]
[1664664862690,0.467979,19331.0,19329.0,0.129254]
[1664664862912,0.075,19330.0,19329.0,0.129254]
[1664664863137,0.075,19330.0,19328.0,0.59740109]
[1664664863369,0.075,19330.0,19328.0,0.46797309]
[1664664863370,0.463003,19330.0,19328.0,0.46797309]
[1664664863586,0.075,19329.0,19328.0,0.82491309]
[1664664863794,0.075,19329.0,19328.0,0.69565509]
[1664664864064,0.129339,19329.0,19328.0,0.33871509]
[1664664864319,0.129339,19329.0,19328.0,1.01645153]
[1664664864507,0.129339,19329.0,19328.0,0.69565509]
[1664664864980,0.129339,19329.0,19328.0,0.76465509]
[1664664866090,0.129339,19329.0,19328.0,0.69565509]
[1664664866870,0.129339,19329.0,19328.0,0.76465509]
[1664664868011,0.129339,19329.0,19328.0,0.69565509]
[1664664868472,0.258658,19331.0,19328.0,1.01645153]
[1664664868688,0.36766132,19332.0,19330.0,0.35694]